{"text_format":"3","workbook":"xlsx","n_sheets":1,"sheets":["CHI PHÍ TU SỬA"],"not_rendered":{"images":2,"defined_names":4},"read":"whole","date_system":"1900"}

{"sheet":"CHI PHÍ TU SỬA","index":0,"n_rows":28,"n_cols":8,"rows_kept":28,"merged":[[25,1,25,5],[26,1,26,5],[27,1,27,5]]}
[null,"CÔNG CỤ TÍNH CHI PHÍ TU SỬA NHÀ BẾP"]
[]
[null,"Thể loại","Mục","Số lượng","Chi phí ước tính","Chi phí thực tế","Tổng chi phí ước tính","Tổng chi phí thực tế"]
[null,"Tủ","Tủ dưới: Mô-đun - tiêu chuẩn (số lượng theo foot dài)",25,{"v":5,"d":"5.00 ₫"},null,{"$f":"Dữ_liệu[[#This Row],[Số lượng]]*Dữ_liệu[[#This Row],[Chi phí ước tính]]","v":{"v":125,"d":"125 ₫"}},{"$f":"Dữ_liệu[[#This Row],[Số lượng]]*Dữ_liệu[[#This Row],[Chi phí thực tế]]","v":{"v":0,"d":"0 ₫"}}]
[null,"Tủ","Tủ trên: Mô-đun - tiêu chuẩn (số lượng theo foot dài)",25,{"v":3.5,"d":"3.50 ₫"},null,{"$f":"Dữ_liệu[[#This Row],[Số lượng]]*Dữ_liệu[[#This Row],[Chi phí ước tính]]","v":{"v":87.5,"d":"88 ₫"}},{"$f":"Dữ_liệu[[#This Row],[Số lượng]]*Dữ_liệu[[#This Row],[Chi phí thực tế]]","v":{"v":0,"d":"0 ₫"}}]
[null,"Thiết bị vệ sinh","Máy rửa bát: Tiêu chuẩn",1,{"v":250,"d":"250.00 ₫"},null,{"$f":"Dữ_liệu[[#This Row],[Số lượng]]*Dữ_liệu[[#This Row],[Chi phí ước tính]]","v":{"v":250,"d":"250 ₫"}},{"$f":"Dữ_liệu[[#This Row],[Số lượng]]*Dữ_liệu[[#This Row],[Chi phí thực tế]]","v":{"v":0,"d":"0 ₫"}}]
[null,"Thiết bị vệ sinh","Máy nghiền rác: Tiêu chuẩn",1,{"v":175,"d":"175.00 ₫"},null,{"$f":"Dữ_liệu[[#This Row],[Số lượng]]*Dữ_liệu[[#This Row],[Chi phí ước tính]]","v":{"v":175,"d":"175 ₫"}},{"$f":"Dữ_liệu[[#This Row],[Số lượng]]*Dữ_liệu[[#This Row],[Chi phí thực tế]]","v":{"v":0,"d":"0 ₫"}}]
[null,"Thiết bị nấu ăn","Phạm vi: Trượt vào tiêu chuẩn",1,{"v":375,"d":"375.00 ₫"},null,{"$f":"Dữ_liệu[[#This Row],[Số lượng]]*Dữ_liệu[[#This Row],[Chi phí ước tính]]","v":{"v":375,"d":"375 ₫"}},{"$f":"Dữ_liệu[[#This Row],[Số lượng]]*Dữ_liệu[[#This Row],[Chi phí thực tế]]","v":{"v":0,"d":"0 ₫"}}]
[null,"Thiết bị nấu ăn","Lò vi sóng: Tiêu chuẩn",1,{"v":300,"d":"300.00 ₫"},null,{"$f":"Dữ_liệu[[#This Row],[Số lượng]]*Dữ_liệu[[#This Row],[Chi phí ước tính]]","v":{"v":300,"d":"300 ₫"}},{"$f":"Dữ_liệu[[#This Row],[Số lượng]]*Dữ_liệu[[#This Row],[Chi phí thực tế]]","v":{"v":0,"d":"0 ₫"}}]
[null,"Kệ bếp","Bề mặt rắn (số lượng theo foot dài)",23,{"v":10,"d":"10.00 ₫"},null,{"$f":"Dữ_liệu[[#This Row],[Số lượng]]*Dữ_liệu[[#This Row],[Chi phí ước tính]]","v":{"v":230,"d":"230 ₫"}},{"$f":"Dữ_liệu[[#This Row],[Số lượng]]*Dữ_liệu[[#This Row],[Chi phí thực tế]]","v":{"v":0,"d":"0 ₫"}}]
[null,"Cửa","Bên trong: Lõi đặc ốp dán",1,{"v":65,"d":"65.00 ₫"},null,{"$f":"Dữ_liệu[[#This Row],[Số lượng]]*Dữ_liệu[[#This Row],[Chi phí ước tính]]","v":{"v":65,"d":"65 ₫"}},{"$f":"Dữ_liệu[[#This Row],[Số lượng]]*Dữ_liệu[[#This Row],[Chi phí thực tế]]","v":{"v":0,"d":"0 ₫"}}]
[null,"Thiết bị bổ sung","Thiết bị bổ sung: Tiêu chuẩn nước nóng tức thì",1,{"v":120,"d":"120.00 ₫"},null,{"$f":"Dữ_liệu[[#This Row],[Số lượng]]*Dữ_liệu[[#This Row],[Chi phí ước tính]]","v":{"v":120,"d":"120 ₫"}},{"$f":"Dữ_liệu[[#This Row],[Số lượng]]*Dữ_liệu[[#This Row],[Chi phí thực tế]]","v":{"v":0,"d":"0 ₫"}}]
[null,"Thiết bị bổ sung","Thiết bị bổ sung: Bình xịt xà phòng",1,{"v":40,"d":"40.00 ₫"},null,{"$f":"Dữ_liệu[[#This Row],[Số lượng]]*Dữ_liệu[[#This Row],[Chi phí ước tính]]","v":{"v":40,"d":"40 ₫"}},{"$f":"Dữ_liệu[[#This Row],[Số lượng]]*Dữ_liệu[[#This Row],[Chi phí thực tế]]","v":{"v":0,"d":"0 ₫"}}]
[null,"Vòi","Vòi: Cần gạt, tiêu chuẩn",1,{"v":130,"d":"130.00 ₫"},null,{"$f":"Dữ_liệu[[#This Row],[Số lượng]]*Dữ_liệu[[#This Row],[Chi phí ước tính]]","v":{"v":130,"d":"130 ₫"}},{"$f":"Dữ_liệu[[#This Row],[Số lượng]]*Dữ_liệu[[#This Row],[Chi phí thực tế]]","v":{"v":0,"d":"0 ₫"}}]
[null,"Sàn","Tấm lát (số lượng theo foot vuông)",165,{"v":3.5,"d":"3.50 ₫"},null,{"$f":"Dữ_liệu[[#This Row],[Số lượng]]*Dữ_liệu[[#This Row],[Chi phí ước tính]]","v":{"v":577.5,"d":"578 ₫"}},{"$f":"Dữ_liệu[[#This Row],[Số lượng]]*Dữ_liệu[[#This Row],[Chi phí thực tế]]","v":{"v":0,"d":"0 ₫"}}]
[null,"Thiết bị giặt là","Máy giặt: Tiêu chuẩn",1,{"v":500,"d":"500.00 ₫"},null,{"$f":"Dữ_liệu[[#This Row],[Số lượng]]*Dữ_liệu[[#This Row],[Chi phí ước tính]]","v":{"v":500,"d":"500 ₫"}},{"$f":"Dữ_liệu[[#This Row],[Số lượng]]*Dữ_liệu[[#This Row],[Chi phí thực tế]]","v":{"v":0,"d":"0 ₫"}}]
[null,"Thiết bị giặt là","Máy sấy: Tiêu chuẩn",1,{"v":375,"d":"375.00 ₫"},null,{"$f":"Dữ_liệu[[#This Row],[Số lượng]]*Dữ_liệu[[#This Row],[Chi phí ước tính]]","v":{"v":375,"d":"375 ₫"}},{"$f":"Dữ_liệu[[#This Row],[Số lượng]]*Dữ_liệu[[#This Row],[Chi phí thực tế]]","v":{"v":0,"d":"0 ₫"}}]
[null,"Đèn","Đèn: Bình âm tường",4,{"v":35,"d":"35.00 ₫"},null,{"$f":"Dữ_liệu[[#This Row],[Số lượng]]*Dữ_liệu[[#This Row],[Chi phí ước tính]]","v":{"v":140,"d":"140 ₫"}},{"$f":"Dữ_liệu[[#This Row],[Số lượng]]*Dữ_liệu[[#This Row],[Chi phí thực tế]]","v":{"v":0,"d":"0 ₫"}}]
[null,"Tủ lạnh","Tủ lạnh: Đứng tự do, sang trọng",1,{"v":1200,"d":"1,200.00 ₫"},null,{"$f":"Dữ_liệu[[#This Row],[Số lượng]]*Dữ_liệu[[#This Row],[Chi phí ước tính]]","v":{"v":1200,"d":"1,200 ₫"}},{"$f":"Dữ_liệu[[#This Row],[Số lượng]]*Dữ_liệu[[#This Row],[Chi phí thực tế]]","v":{"v":0,"d":"0 ₫"}}]
[null,"Chậu","Chậu rửa kép thép không gỉ sang trọng",1,{"v":125,"d":"125.00 ₫"},null,{"$f":"Dữ_liệu[[#This Row],[Số lượng]]*Dữ_liệu[[#This Row],[Chi phí ước tính]]","v":{"v":125,"d":"125 ₫"}},{"$f":"Dữ_liệu[[#This Row],[Số lượng]]*Dữ_liệu[[#This Row],[Chi phí thực tế]]","v":{"v":0,"d":"0 ₫"}}]
[null,"Thông gió","Thiết bị hút mùi: Đường ống tiêu chuẩn",1,{"v":180,"d":"180.00 ₫"},null,{"$f":"Dữ_liệu[[#This Row],[Số lượng]]*Dữ_liệu[[#This Row],[Chi phí ước tính]]","v":{"v":180,"d":"180 ₫"}},{"$f":"Dữ_liệu[[#This Row],[Số lượng]]*Dữ_liệu[[#This Row],[Chi phí thực tế]]","v":{"v":0,"d":"0 ₫"}}]
[null,"Tường","Tủ tường (số lượng theo foot vuông)",70,{"v":2,"d":"2.00 ₫"},null,{"$f":"Dữ_liệu[[#This Row],[Số lượng]]*Dữ_liệu[[#This Row],[Chi phí ước tính]]","v":{"v":140,"d":"140 ₫"}},{"$f":"Dữ_liệu[[#This Row],[Số lượng]]*Dữ_liệu[[#This Row],[Chi phí thực tế]]","v":{"v":0,"d":"0 ₫"}}]
[null,"Cửa sổ","Hệ thống trượt",2,{"v":120,"d":"120.00 ₫"},null,{"$f":"Dữ_liệu[[#This Row],[Số lượng]]*Dữ_liệu[[#This Row],[Chi phí ước tính]]","v":{"v":240,"d":"240 ₫"}},{"$f":"Dữ_liệu[[#This Row],[Số lượng]]*Dữ_liệu[[#This Row],[Chi phí thực tế]]","v":{"v":0,"d":"0 ₫"}}]
[null,"Khác",{"$nulls":4},{"$f":"Dữ_liệu[[#This Row],[Số lượng]]*Dữ_liệu[[#This Row],[Chi phí ước tính]]","v":{"v":0,"d":"0 ₫"}},{"$f":"Dữ_liệu[[#This Row],[Số lượng]]*Dữ_liệu[[#This Row],[Chi phí thực tế]]","v":{"v":0,"d":"0 ₫"}}]
[null,"Tổng",null,null,{"$f":"SUBTOTAL(109,Dữ_liệu[Chi phí ước tính])","v":{"v":4014,"d":"4,014.00 ₫"}},{"$f":"SUBTOTAL(109,Dữ_liệu[Chi phí thực tế])","v":{"v":0,"d":"0.00 ₫"}},{"$f":"SUBTOTAL(109,Dữ_liệu[Tổng chi phí ước tính])","v":{"v":5375,"d":"5,375.00 ₫"}},{"$f":"SUBTOTAL(109,Dữ_liệu[Tổng chi phí thực tế])","v":{"v":0,"d":"0.00 ₫"}}]
[null,"Tổng phụ",{"$nulls":4},{"$f":"SUBTOTAL(109,Dữ_liệu[Tổng chi phí ước tính])","v":{"v":5375,"d":"5,375.00 ₫"}},{"$f":"SUBTOTAL(109,Dữ_liệu[Tổng chi phí thực tế])","v":{"v":0,"d":"0.00 ₫"}}]
[null,"Chi phí ngoài dự kiến - Thêm 30%",{"$nulls":4},{"$f":"G26*0.3","v":{"v":1612.5,"d":"1,612.50 ₫"}},{"$f":"H26*0.3","v":{"v":0,"d":"0.00 ₫"}}]
[null,"Tổng cộng",{"$nulls":4},{"$f":"SUM(G26:G27)","v":{"v":6987.5,"d":"6,987.50 ₫"}},{"$f":"SUM(H26:H27)","v":{"v":0,"d":"0.00 ₫"}}]